bitfinex/quotes_BTCUSD_20250226
["timestamp","ask_amount","ask_price","bid_price","bid_amount"]
[1740558088500,0.00136,88521.0,88520.0,0.47326]
[1740558088714,0.00136,88521.0,88520.0,0.642713]
[1740558089115,0.00136,88521.0,88520.0,0.77100138]
[1740558089770,0.00136,88521.0,88520.0,0.77321538]
[1740558090129,0.0017838,88521.0,88520.0,0.77321538]
[1740558091568,0.0017838,88521.0,88520.0,1.07321538]
[1740558092945,0.0017838,88521.0,88520.0,1.11292016]
[1740558093946,0.0017838,88521.0,88520.0,1.10592016]
[1740558094147,0.0017838,88521.0,88520.0,1.09892016]
[1740558094506,0.0017838,88521.0,88520.0,1.11850724]
[1740558095228,0.0017838,88521.0,88520.0,1.13250724]
[1740558095981,0.0017838,88521.0,88520.0,1.12550724]
[1740558096208,0.0017838,88521.0,88520.0,1.10592016]
[1740558096410,0.0017838,88521.0,88520.0,1.20592016]
[1740558096678,0.0017838,88521.0,88520.0,1.23933179]
[1740558097436,0.03641062,88558.0,88528.0,0.0786]
[1740558097678,0.169382,88557.0,88550.0,0.169395]
[1740558097926,0.225819,88567.0,88548.0,0.0821]
[1740558097927,0.000424,88572.0,88551.0,0.01016]
[1740558098168,0.169361,88569.0,88562.0,0.169372]
[1740558098393,0.169355,88571.0,88562.0,0.169372]
[1740558098626,0.000424,88572.0,88562.0,0.01112232]
[1740558098799,0.1702094,88568.0,88562.0,0.01112232]
[1740558099036,0.00126873,88563.0,88560.0,0.169376]
[1740558099480,0.00126873,88563.0,88561.0,0.1804969]
[1740558099623,0.00126873,88563.0,88562.0,0.002]
[1740558099826,0.00126873,88563.0,88562.0,0.18249432]
[1740558100052,0.00126873,88563.0,88562.0,0.18549432]
[1740558101422,0.00126873,88563.0,88562.0,0.18049432]
[1740558101640,0.00126873,88563.0,88562.0,0.18149432]
[1740558101848,0.00126873,88563.0,88562.0,0.25679432]
[1740558102862,0.00126873,88563.0,88562.0,0.25979432]
[1740558104601,0.00126873,88563.0,88562.0,0.37354185]
[1740558105023,0.00126873,88563.0,88562.0,0.3880827]
[1740558105433,0.00126873,88563.0,88562.0,0.4329827]
[1740558105632,0.00126873,88563.0,88562.0,0.4299827]
[1740558105841,0.00126873,88563.0,88562.0,0.4329827]
[1740558106018,0.00126873,88563.0,88562.0,0.4379827]
[1740558107506,0.00126873,88563.0,88562.0,0.7379827]
[1740558107930,0.00126873,88563.0,88562.0,1.10278748]
[1740558108348,0.00126873,88563.0,88562.0,1.20278748]
[1740558108555,0.00126873,88563.0,88562.0,1.19978748]
[1740558108734,0.00126873,88563.0,88562.0,1.20178748]
[1740558109140,0.00126873,88563.0,88562.0,1.12836435]
[1740558109344,0.00126873,88563.0,88562.0,1.12136435]
[1740558109673,0.00126873,88563.0,88562.0,1.12836435]
[1740558110442,0.00126873,88563.0,88562.0,1.12136435]
[1740558110615,0.00126873,88563.0,88562.0,1.12836435]
[1740558111219,0.00126873,88563.0,88562.0,1.1138235]
[1740558111447,0.00126873,88563.0,88562.0,0.9444515]
[1740558111669,0.00126873,88563.0,88562.0,1.1239835]
[1740558112071,0.00126873,88563.0,88562.0,1.13852435]
[1740558112308,0.00126873,88563.0,88562.0,1.13104467]
[1740558112517,0.00126873,88563.0,88562.0,0.92055495]
[1740558112694,0.00126873,88563.0,88562.0,0.78992695]
[1740558112913,0.00126873,88563.0,88562.0,0.50367463]
[1740558113124,0.00126873,88563.0,88562.0,0.67620663]
[1740558113347,0.00126873,88563.0,88562.0,0.66604663]
[1740558113554,0.225786,88580.0,88562.0,0.67620663]
[1740558113758,0.169353,88572.0,88565.0,0.169366]
[1740558114171,0.169355,88571.0,88566.0,0.01055985]
[1740558114533,0.225804,88573.0,88566.0,0.01055985]
[1740558114735,0.00054978,88579.0,88562.0,0.34926]
[1740558115137,0.169361,88568.0,88562.0,0.34926]
[1740558115341,0.169361,88568.0,88565.0,0.007]
[1740558115798,0.2258,88574.0,88566.0,0.01755985]
[1740558115988,0.169351,88574.0,88566.0,0.17992285]
[1740558116201,0.00054978,88579.0,88566.0,0.01055985]
[1740558116453,0.225789,88578.0,88566.0,0.01055985]
[1740558116657,0.169357,88571.0,88566.0,0.01055985]
[1740558117782,0.169357,88571.0,88566.0,0.01755985]
[1740558118186,0.169362,88568.0,88566.0,0.01055985]
[1740558118396,0.169363,88567.0,88566.0,0.01055985]
[1740558118597,0.00054978,88579.0,88566.0,0.014]
[1740558118800,0.225796,88576.0,88566.0,0.01755985]
[1740558119027,0.169351,88573.0,88567.0,0.169362]
[1740558119432,0.169355,88572.0,88568.0,0.01055667]
[1740558119804,0.22633678,88579.0,88566.0,0.021]
[1740558120008,0.22633678,88579.0,88567.0,0.01055826]
[1740558120174,0.16935,88574.0,88568.0,0.16936]
[1740558120379,0.169352,88573.0,88567.0,0.01055826]
[1740558120575,0.169352,88573.0,88568.0,0.01055667]
[1740558120783,0.00054978,88579.0,88566.0,0.007]
[1740558120988,0.169357,88571.0,88566.0,0.007]
[1740558121187,0.169359,88569.0,88567.0,0.01055826]
[1740558121432,0.169361,88568.0,88562.0,0.33526]
[1740558121644,0.00054978,88579.0,88563.0,0.01056461]
[1740558121849,0.169367,88565.0,88563.0,0.01056461]
[1740558122048,0.395176,88568.0,88567.0,0.007]
[1740558122396,0.169363,88567.0,88566.0,0.007]
[1740558123367,0.169363,88567.0,88566.0,0.01756596]
[1740558123584,0.169363,88567.0,88566.0,0.007]
[1740558123776,0.169363,88567.0,88566.0,0.02456596]
[1740558124017,0.169363,88567.0,88566.0,0.014]
[1740558124218,0.216163,88567.0,88566.0,0.01756596]
[1740558124598,0.216163,88567.0,88566.0,0.007]
[1740558124799,0.169363,88567.0,88566.0,0.007]
[1740558125172,0.26169945,88568.0,88557.0,0.0008472]
[1740558125173,0.16938,88558.0,88557.0,0.0008472]
[1740558125830,0.59708,88558.0,88557.0,0.0008472]
[1740558126009,0.59708,88558.0,88513.0,0.135573]
[1740558126010,0.16946,88516.0,88513.0,0.135573]
[1740558126419,0.16946,88516.0,88515.0,0.01149457]
[1740558126625,0.16946,88516.0,88515.0,0.0008476]
[1740558126833,0.46946,88516.0,88515.0,0.0008476]
[1740558127452,0.51399531,88516.0,88515.0,0.00126713]
[1740558128435,0.04553531,88516.0,88515.0,0.00926713]
[1740558128754,0.21499531,88516.0,88515.0,0.00126713]
[1740558128970,0.21499531,88516.0,88515.0,0.00526713]
[1740558129232,0.21499531,88516.0,88515.0,0.00626713]
[1740558129407,0.169464,88514.0,88513.0,0.09184013]
[1740558131624,0.170464,88514.0,88513.0,0.09184013]
[1740558131945,0.169464,88514.0,88513.0,0.09184013]
[1740558132146,0.169464,88514.0,88513.0,0.09584013]
[1740558132348,0.169464,88514.0,88513.0,0.09784013]
[1740558132551,0.27048231,88516.0,88513.0,0.09784013]
[1740558132552,0.169462,88515.0,88513.0,0.09784013]
[1740558132755,0.225935,88521.0,88513.0,0.09784013]
[1740558132756,0.00853885,88530.0,88513.0,0.09784013]
[1740558132965,0.169459,88517.0,88513.0,0.09784013]
[1740558133162,0.169456,88519.0,88513.0,0.09784013]
[1740558133373,0.00853885,88530.0,88514.0,0.01081223]
[1740558133516,0.169454,88520.0,88514.0,0.01081223]
[1740558133714,0.33706508,88536.0,88515.0,0.01016]
[1740558133919,0.33706508,88536.0,88514.0,0.01081223]
[1740558133920,0.29223534,88549.0,88514.0,0.01081223]
[1740558134141,0.29236113,88549.0,88516.0,0.01080905]
[1740558134344,0.169422,88536.0,88528.0,0.169436]
[1740558134567,0.00012579,88549.0,88518.0,0.0755]
[1740558134769,0.169421,88537.0,88529.0,0.1802234]
[1740558135130,0.621186,88540.0,88530.0,0.01078681]
[1740558135342,0.169426,88534.0,88530.0,0.01078681]
[1740558135534,0.225866,88548.0,88530.0,0.169433]
[1740558135944,0.225866,88548.0,88531.0,0.18021622]
[1740558136173,0.17042,88537.0,88531.0,0.01078522]
[1740558136305,0.169422,88536.0,88531.0,0.01078522]
[1740558136503,0.001,88537.0,88520.0,0.225937]
[1740558136746,0.001,88537.0,88405.0,1.5]
[1740558136747,0.001,88537.0,88536.0,0.169422]
[1740558137212,0.001,88537.0,88536.0,0.18178034]
[1740558138051,0.00012579,88549.0,88546.0,0.169403]
[1740558138194,0.00012579,88549.0,88547.0,0.0107598]
[1740558138856,0.00012579,88549.0,88547.0,0.0097598]
[1740558139263,0.00012579,88549.0,88548.0,0.248799]
[1740558139418,0.00012579,88549.0,88548.0,0.25950721]
[1740558140029,0.00012579,88549.0,88548.0,0.09010821]
[1740558140998,0.00012579,88549.0,88548.0,0.09310821]
[1740558141198,0.00012579,88549.0,88548.0,0.09910821]
[1740558141695,0.16952279,88549.0,88548.0,0.01970821]
[1740558141849,0.16952279,88549.0,88548.0,0.02986821]
[1740558142050,0.16952279,88549.0,88548.0,0.01916]
[1740558142248,0.00012579,88549.0,88548.0,0.01916]
[1740558142496,0.00012579,88549.0,88548.0,0.02986821]
[1740558143108,0.00012579,88549.0,88548.0,0.19926721]
[1740558143407,0.00012579,88549.0,88548.0,0.20084805]
[1740558144281,0.00012579,88549.0,88548.0,0.19926721]
[1740558145226,0.00012579,88549.0,88548.0,0.02986821]
[1740558145821,0.00012579,88549.0,88548.0,0.19926721]
[1740558146304,0.00012579,88549.0,88548.0,0.20084805]
[1740558146728,0.16936,88569.0,88562.0,0.169372]
[1740558147132,0.169363,88567.0,88563.0,0.0106844]
[1740558147334,0.169369,88564.0,88563.0,0.0106844]
[1740558147685,0.169375,88561.0,88555.0,0.169385]
[1740558147825,0.225804,88572.0,88555.0,0.169385]
[1740558148030,0.16938,88559.0,88556.0,0.02085551]
[1740558148473,0.225834,88561.0,88556.0,0.02085551]
[1740558148700,0.16938,88559.0,88556.0,0.02085551]
[1740558148905,0.169382,88557.0,88556.0,0.01069551]
[1740558149324,0.169382,88557.0,88556.0,0.004]
[1740558150548,0.169382,88557.0,88556.0,0.006]
[1740558150755,0.169382,88557.0,88556.0,0.002]
[1740558150957,0.169407,88544.0,88543.0,0.01016]
[1740558151262,0.169407,88544.0,88543.0,0.02087616]
[1740558151412,0.169407,88544.0,88543.0,0.01016]
[1740558152059,0.3,88569.0,88530.0,0.0803482]
[1740558152268,0.169418,88538.0,88537.0,0.01016]
[1740558153154,0.3,88560.0,88543.0,0.007]
[1740558153361,0.169397,88549.0,88543.0,0.007]
[1740558153560,0.169407,88544.0,88543.0,0.007]
[1740558153773,0.16941,88543.0,88537.0,0.17958]
[1740558153982,0.169407,88544.0,88543.0,0.01071616]
[1740558154180,0.169418,88538.0,88537.0,0.01716]
[1740558154427,0.169418,88538.0,88537.0,0.01016]
[1740558155049,0.169418,88538.0,88537.0,0.01716]
[1740558155253,0.169418,88538.0,88537.0,0.01016]
[1740558155443,0.169422,88536.0,88535.0,0.00012579]
[1740558156211,0.51522528,88536.0,88535.0,0.00012579]
[1740558156416,0.59542528,88536.0,88535.0,7.9e-07]
[1740558156624,0.59542528,88536.0,88530.0,0.0007232]
[1740558156625,0.169432,88531.0,88530.0,0.0007232]
[1740558157832,0.169432,88531.0,88530.0,0.0017232]
[1740558159496,0.170432,88531.0,88530.0,0.0017232]
[1740558160295,0.470432,88531.0,88530.0,2e-07]
[1740558165763,0.470432,88531.0,88530.0,0.000848]
[1740558168622,0.170432,88531.0,88530.0,0.000848]
[1740558168823,0.001,88531.0,88530.0,0.000848]
[1740558169170,0.001,88531.0,88530.0,0.19117881]
[1740558169375,0.001,88531.0,88530.0,0.086808]
[1740558169526,0.001,88531.0,88530.0,0.09754481]
[1740558169936,0.169432,88531.0,88530.0,0.09754481]
[1740558170136,0.169432,88531.0,88530.0,0.09954481]
[1740558170342,0.169432,88531.0,88530.0,0.09954461]
[1740558170708,0.169432,88531.0,88530.0,0.0958078]
[1740558170907,0.21279856,88533.0,88530.0,0.0888078]
[1740558171169,0.169432,88531.0,88530.0,0.0786478]
[1740558171324,0.169432,88531.0,88530.0,0.0098478]
[1740558171530,0.169432,88531.0,88530.0,0.0008478]
[1740558171731,0.169432,88531.0,88530.0,0.0078478]
[1740558171939,0.469432,88531.0,88530.0,0.0148478]
[1740558172137,0.469432,88531.0,88513.0,0.09184013]
[1740558172138,0.469464,88514.0,88513.0,0.09184013]
[1740558172545,0.469464,88514.0,88513.0,0.10260395]
[1740558172741,0.469464,88514.0,88513.0,0.09184013]
[1740558174220,0.469464,88514.0,88513.0,0.09284013]
[1740558174424,0.469464,88514.0,88513.0,0.09184013]
[1740558174838,0.471464,88514.0,88513.0,0.09484013]
[1740558175065,0.471464,88514.0,88513.0,0.09184013]
[1740558175243,0.469464,88514.0,88513.0,0.09184013]
[1740558175455,0.469464,88514.0,88513.0,0.09284013]
[1740558175655,0.471464,88514.0,88513.0,0.09284013]
[1740558176074,0.469464,88514.0,88513.0,0.09284013]
[1740558176472,0.470464,88514.0,88513.0,0.09284013]
[1740558176645,0.470464,88514.0,88513.0,0.09184013]
[1740558177025,0.470464,88514.0,88513.0,0.09284013]
[1740558178865,0.470464,88514.0,88513.0,0.09368853]
[1740558179541,0.170464,88514.0,88513.0,0.09368853]
[1740558179737,0.001,88514.0,88513.0,0.10445235]
[1740558180082,0.001,88514.0,88513.0,0.11461235]
[1740558180511,0.170464,88514.0,88513.0,0.11461235]
[1740558180914,0.001,88514.0,88513.0,0.10345235]
[1740558181113,0.002,88514.0,88513.0,0.15695235]
[1740558181332,0.001,88514.0,88513.0,0.15695235]
[1740558181507,0.001,88514.0,88513.0,0.16095235]
[1740558182327,0.001,88514.0,88513.0,0.33041835]
[1740558183497,0.001,88514.0,88513.0,0.54170673]
[1740558186600,0.001,88514.0,88513.0,0.52716588]
[1740558187602,0.001,88514.0,88513.0,0.35769988]
[1740558188005,0.001,88514.0,88513.0,0.52716588]
[1740558188208,0.001,88514.0,88513.0,0.24395235]
[1740558188376,0.170464,88514.0,88513.0,0.11245235]
[1740558190029,0.001,88514.0,88513.0,0.28191835]
[1740558190248,0.001,88514.0,88513.0,0.45108539]
[1740558190741,0.001,88514.0,88513.0,0.50048539]
[1740558191490,0.001,88514.0,88513.0,0.23655235]
[1740558191724,0.001,88514.0,88513.0,0.42317835]
[1740558192272,0.001,88514.0,88513.0,0.53692588]
[1740558192370,0.0004242,88530.0,88513.0,0.36245988]
[1740558192601,0.3,88538.0,88514.0,0.00158135]
[1740558192844,0.16943,88533.0,88523.0,0.169446]
[1740558193295,0.3,88534.0,88524.0,0.01074634]
[1740558193561,0.0133626,88779.0,88526.0,0.225922]
[1740558193562,0.3,88540.0,88526.0,0.225922]
[1740558193807,0.03796211,88546.0,88527.0,0.00158122]
[1740558194035,0.001,88538.0,88530.0,0.225912]
[1740558194265,0.169417,88539.0,88529.0,0.169434]
[1740558194522,0.03923544,88546.0,88531.0,0.01073522]
[1740558194727,0.169405,88545.0,88535.0,0.169423]
[1740558194954,0.169405,88545.0,88527.0,0.00158122]
[1740558194955,0.3,88550.0,88526.0,0.0772]
[1740558195186,0.001,88549.0,88528.0,0.225917]
[1740558195328,0.169411,88542.0,88527.0,0.01074157]
[1740558195557,0.03917963,88550.0,88529.0,0.0147384]
[1740558195770,0.16941,88543.0,88532.0,0.169429]
[1740558195995,0.03817963,88550.0,88527.0,0.225919]
[1740558196204,0.16940048,88553.0,88533.0,0.01073204]
[1740558196406,0.169408,88544.0,88528.0,0.225916]
[1740558196605,0.169408,88544.0,88534.0,0.01073045]
[1740558196779,0.225871,88546.0,88529.0,0.00258119]
[1740558197115,0.225873,88545.0,88529.0,0.00258119]
[1740558197433,0.00012572,88556.0,88531.0,0.274209]
[1740558197676,0.00012572,88556.0,88547.0,0.0761]
[1740558198003,0.169398,88549.0,88548.0,0.01070821]
[1740558198200,0.225848,88555.0,88547.0,0.0761]
[1740558198606,0.00012572,88556.0,88547.0,0.0761]
[1740558198872,0.16939,88553.0,88548.0,0.01070821]
[1740558199255,0.16939,88553.0,88547.0,0.0761]
[1740558199434,0.169392,88552.0,88547.0,0.0761]
[1740558199632,0.00012572,88556.0,88550.0,0.169395]
[1740558199864,0.00012572,88556.0,88548.0,0.04778099]
[1740558200035,0.00012572,88556.0,88555.0,0.169386]
[1740558200390,0.00012572,88556.0,88555.0,0.18166385]
[1740558200963,0.00012572,88556.0,88555.0,0.01227785]
[1740558201171,0.00012572,88556.0,88555.0,0.0106971]
[1740558201371,0.00012572,88556.0,88548.0,0.13666704]
[1740558201533,0.00012572,88556.0,88549.0,0.169397]
[1740558201739,0.00012572,88556.0,88549.0,0.18010363]
[1740558201933,0.00012572,88556.0,88551.0,0.169393]
[1740558202133,0.00012572,88556.0,88550.0,0.01070504]
[1740558202334,0.00012572,88556.0,88552.0,0.01070186]
[1740558202564,0.00029734,88556.0,88551.0,0.18009645]
[1740558202767,0.00029734,88556.0,88553.0,0.01070027]
[1740558202971,0.00029734,88556.0,88551.0,0.169393]
[1740558203187,0.00029734,88556.0,88554.0,0.01069869]
[1740558203516,0.00029734,88556.0,88551.0,0.002]
[1740558203725,0.00012572,88556.0,88555.0,0.01052548]
[1740558203859,0.00012572,88556.0,88555.0,0.169386]
[1740558204060,0.00012572,88556.0,88555.0,0.18165518]
[1740558204401,0.225766,88587.0,88566.0,0.169363]
[1740558204609,0.225766,88587.0,88555.0,0.00158066]
[1740558204805,0.169354,88572.0,88555.0,0.00458066]
[1740558205062,0.169355,88571.0,88561.0,0.169373]
[1740558205210,0.169355,88571.0,88556.0,0.23653193]
[1740558205412,0.169355,88572.0,88562.0,0.1800494]
[1740558205645,0.169349,88575.0,88566.0,0.001]
[1740558205816,0.03920435,88578.0,88566.0,0.0816]
[1740558206037,0.225767,88587.0,88567.0,0.01066946]
[1740558206240,0.0785,88595.0,88567.0,0.01066946]
[1740558206241,0.169361,88568.0,88567.0,0.01066946]
[1740558206443,0.15920062,88568.0,88567.0,0.01066946]
[1740558206646,0.169363,88567.0,88566.0,0.001]
[1740558206845,0.225797,88576.0,88557.0,0.01016]
[1740558207133,0.16938,88558.0,88557.0,0.01016]
[1740558207339,0.3,88588.0,88557.0,0.01016]
[1740558207678,0.169342,88579.0,88569.0,0.169357]
[1740558207906,0.29223534,88589.0,88560.0,0.00158065]
[1740558208036,0.169342,88578.0,88570.0,0.0106647]
[1740558208238,0.169342,88578.0,88564.0,0.00158056]
[1740558208439,0.0004192,88578.0,88571.0,0.01066311]
[1740558208697,0.0004192,88578.0,88561.0,0.09046704]
[1740558208900,0.0004192,88578.0,88573.0,0.16935]
[1740558209063,0.0004192,88578.0,88562.0,0.15924753]
[1740558209262,0.0004192,88578.0,88574.0,0.169348]
[1740558209659,0.0004192,88578.0,88575.0,0.01065676]
[1740558210293,0.0004192,88578.0,88573.0,0.003]
[1740558210495,0.03831766,88589.0,88576.0,0.01065518]
[1740558210698,0.169342,88578.0,88576.0,0.01065518]
[1740558210896,0.225764,88588.0,88570.0,0.169357]
[1740558211236,0.169342,88578.0,88570.0,0.169357]
[1740558211390,0.169342,88578.0,88571.0,0.01066311]
[1740558211764,0.169343,88578.0,88574.0,0.003]
[1740558211963,0.16934,88579.0,88572.0,0.169353]
[1740558212292,0.226764,88588.0,88569.0,0.22581]
[1740558212524,0.169344,88577.0,88573.0,0.01065994]
[1740558212734,0.169341,88579.0,88574.0,0.01065835]
[1740558212963,0.169341,88579.0,88572.0,0.169353]
[1740558213166,0.169341,88579.0,88575.0,0.01065676]
[1740558213358,0.03861204,88589.0,88575.0,0.01065676]
[1740558213568,0.169344,88577.0,88570.0,0.001]
[1740558213769,0.169355,88571.0,88570.0,0.001]
[1740558213931,0.225804,88573.0,88570.0,0.01016]
[1740558214133,0.169355,88571.0,88570.0,0.01016]
[1740558214611,0.169355,88571.0,88570.0,0.0208247]
[1740558215053,0.169355,88571.0,88570.0,0.01416]
[1740558215458,0.169355,88571.0,88570.0,0.004]
[1740558215656,0.169355,88571.0,88570.0,0.02016]
[1740558217453,0.169353,88572.0,88570.0,0.02016]
[1740558217700,0.169355,88571.0,88570.0,0.02016]
[1740558219018,0.169355,88571.0,88570.0,0.0210078]
[1740558219243,0.169354,88572.0,88570.0,0.0210078]
[1740558219454,0.225804,88573.0,88570.0,0.0170078]
[1740558219661,0.169355,88572.0,88570.0,0.0200078]
[1740558219876,0.22579,88578.0,88570.0,0.0200078]
[1740558220128,0.3,88587.0,88570.0,0.0200078]
[1740558220347,0.3,88587.0,88573.0,0.225802]
[1740558220553,0.3,88587.0,88574.0,0.225799]
[1740558220778,0.169327,88586.0,88576.0,0.169346]
[1740558220983,0.3,88587.0,88574.0,0.01065835]
[1740558221205,0.169335,88582.0,88577.0,0.01065359]
[1740558221615,0.169333,88583.0,88578.0,0.010652]
[1740558221991,0.169333,88583.0,88573.0,0.169351]
[1740558222155,0.169335,88582.0,88579.0,0.01065042]
[1740558222353,0.169335,88582.0,88573.0,0.169351]
[1740558222562,0.225764,88588.0,88579.0,0.16934]
[1740558222563,0.3,88587.0,88579.0,0.16934]
[1740558222783,0.3,88587.0,88583.0,0.169332]
[1740558223023,0.3,88587.0,88582.0,0.169334]
[1740558223350,0.169331,88584.0,88573.0,0.225801]
[1740558223553,0.225769,88586.0,88575.0,0.169347]
[1740558223703,0.169334,88582.0,88574.0,0.01065835]
[1740558223927,0.33861204,88589.0,88572.0,0.0776]
[1740558223928,0.169339,88580.0,88576.0,0.01065518]
[1740558224119,0.33861204,88589.0,88575.0,0.01065676]
[1740558224341,0.169347,88576.0,88572.0,0.0776]
[1740558224549,0.169348,88575.0,88572.0,0.0776]
[1740558224750,0.169351,88573.0,88572.0,0.0776]
[1740558224949,0.169348,88575.0,88572.0,0.0776]
[1740558225183,0.225787,88580.0,88572.0,0.0776]
[1740558225406,0.16935,88574.0,88572.0,0.0776]
[1740558225989,0.16935,88574.0,88572.0,0.0826]
[1740558226196,0.225794,88577.0,88572.0,0.0826]
[1740558226420,0.225787,88579.0,88572.0,0.0826]
[1740558226611,0.225787,88579.0,88572.0,0.0806]
[1740558226818,0.169348,88575.0,88573.0,0.01016]
[1740558227267,0.225793,88577.0,88573.0,0.01016]
[1740558227473,0.169349,88574.0,88573.0,0.01016]
[1740558229421,0.169349,88574.0,88573.0,0.01216]
[1740558229883,0.169349,88574.0,88573.0,0.01016]
[1740558230121,0.169349,88574.0,88573.0,0.01516]
[1740558230367,0.225747,88595.0,88573.0,0.01816]
[1740558230592,0.0008474,88605.0,88573.0,0.01816]
[1740558230813,0.3,88586.0,88573.0,0.187511]
[1740558231064,0.3,88586.0,88573.0,0.01816]
[1740558231300,0.33861204,88589.0,88576.0,0.0794]
[1740558231554,0.50793304,88589.0,88576.0,0.0794]
[1740558231787,0.33861204,88589.0,88576.0,0.0794]
[1740558232208,0.33861204,88589.0,88582.0,0.169334]
[1740558232736,0.33961204,88589.0,88576.0,0.305193]
[1740558232970,0.169344,88577.0,88576.0,0.0794]
[1740558233216,0.225775,88584.0,88573.0,0.01016]
[1740558233455,0.169332,88583.0,88573.0,0.01016]
[1740558233710,0.169332,88583.0,88573.0,0.179511]
[1740558233967,0.169332,88583.0,88573.0,0.01016]
[1740558234201,0.169332,88583.0,88575.0,0.169347]
[1740558234454,0.169332,88583.0,88574.0,0.169349]
[1740558234637,0.3,88584.0,88576.0,0.169345]
[1740558234914,0.3,88584.0,88574.0,0.225799]
[1740558234915,0.3,88584.0,88573.0,0.01016]
[1740558235137,0.03861204,88589.0,88584.0,0.169329]
[1740558235412,0.03861204,88589.0,88578.0,0.225788]
[1740558235608,0.33961204,88589.0,88582.0,0.169334]
[1740558235779,0.33961204,88589.0,88576.0,0.001]
[1740558235986,0.33861204,88589.0,88576.0,0.001]
[1740558236349,0.33861204,88589.0,88585.0,0.169328]
[1740558236552,0.33861204,88589.0,88576.0,0.226792]
[1740558236755,0.33961204,88589.0,88580.0,0.225784]
[1740558236984,0.33961204,88589.0,88578.0,0.169341]
[1740558237178,0.169326,88587.0,88576.0,0.225792]
[1740558237344,0.169327,88586.0,88578.0,0.169341]
[1740558237695,0.33861204,88589.0,88573.0,0.235962]
[1740558237900,0.33961204,88589.0,88583.0,0.169331]
[1740558238195,0.50893304,88589.0,88580.0,0.169336]
[1740558238698,0.3,88587.0,88580.0,0.169336]
[1740558239105,0.469325,88587.0,88579.0,0.169338]
[1740558239334,0.169327,88586.0,88579.0,0.169338]
[1740558239511,0.169327,88586.0,88578.0,0.169341]
[1740558240218,0.3,88587.0,88579.0,0.16934]
[1740558240453,0.3,88587.0,88580.0,0.169336]
[1740558240653,0.169327,88586.0,88576.0,0.225792]
[1740558241006,0.3,88587.0,88573.0,0.01016]
[1740558241208,0.469325,88587.0,88579.0,0.16934]
[1740558241633,0.3,88588.0,88579.0,0.16934]
[1740558242130,0.3,88588.0,88576.0,0.225792]
[1740558242333,0.169328,88586.0,88578.0,0.169341]
[1740558242535,0.225766,88587.0,88578.0,0.169341]
[1740558242693,0.56437304,88589.0,88574.0,0.225799]
[1740558242947,0.33861204,88589.0,88573.0,0.01016]
[1740558243143,0.001,88588.0,88582.0,0.169334]
[1740558243346,0.169327,88586.0,88574.0,0.225799]
[1740558243883,0.16654382,88586.0,88577.0,0.169342]
[1740558244100,0.33861204,88589.0,88574.0,0.225799]
[1740558244337,0.33861204,88589.0,88573.0,0.01016]
[1740558244338,0.00112568,88589.0,88588.0,0.169323]
[1740558244540,0.00112568,88589.0,88588.0,0.251523]
[1740558245343,0.00112568,88589.0,88588.0,0.0822]
[1740558245558,0.00012568,88589.0,88585.0,0.0476]
[1740558245759,0.169344,88578.0,88575.0,0.0764]
[1740558245961,0.35349791,88590.0,88575.0,0.07652568]
[1740558246176,0.169346,88576.0,88575.0,0.00012568]
[1740558247155,0.169346,88576.0,88575.0,0.00212568]
[1740558247354,0.590746,88576.0,88575.0,0.00012568]
[1740558247765,0.469349,88574.0,88573.0,6.8e-07]
[1740558247968,0.169355,88571.0,88570.0,4.8e-07]
[1740558248178,0.76159034,88571.0,88570.0,4.8e-07]
[1740558248388,0.84019034,88571.0,88570.0,4.8e-07]
[1740558248596,0.9540473,88571.0,88570.0,4.8e-07]
[1740558248792,0.84019034,88571.0,88570.0,4.8e-07]
[1740558249532,0.84319034,88571.0,88570.0,4.8e-07]
[1740558249661,0.84019034,88571.0,88570.0,4.8e-07]
[1740558250108,0.84319034,88571.0,88570.0,4.8e-07]
[1740558252777,0.76459034,88571.0,88570.0,4.8e-07]
[1740558256145,0.472355,88571.0,88570.0,4.8e-07]
[1740558256347,0.172355,88571.0,88570.0,4.8e-07]
[1740558256976,0.169375,88561.0,88556.0,0.01006048]
[1740558257178,0.005,88571.0,88556.0,0.01006048]
[1740558257379,0.169382,88557.0,88556.0,0.01006048]
[1740558258024,0.169384,88556.0,88554.0,0.0473]
[1740558258205,0.169384,88556.0,88552.0,0.01016]
[1740558258412,0.169384,88556.0,88540.0,0.1257]
[1740558258617,0.169384,88556.0,88543.0,0.01016]
[1740558259238,0.169384,88556.0,88555.0,2.004]
[1740558259665,0.169384,88556.0,88555.0,2.001]
[1740558259950,0.169384,88556.0,88555.0,2.004]
[1740558260150,0.169384,88556.0,88555.0,2.0]
[1740558260347,0.169384,88556.0,88555.0,2.003]
[1740558260539,0.169384,88556.0,88555.0,2.004]
[1740558261763,0.169384,88556.0,88555.0,2.0]
[1740558262006,0.169384,88556.0,88555.0,2.002]
[1740558262383,0.169384,88556.0,88555.0,2.0]
[1740558262608,0.169384,88556.0,88555.0,2.004]
[1740558262835,0.169384,88556.0,88555.0,2.006]
[1740558262957,0.169384,88556.0,88555.0,2.002]
[1740558263318,0.169384,88556.0,88555.0,2.004]
[1740558263745,0.169384,88556.0,88555.0,2.006]
[1740558264873,0.169384,88556.0,88555.0,2.004]
[1740558265074,0.3,88569.0,88555.0,2.004]
[1740558265236,0.169384,88556.0,88555.0,2.006]
[1740558265582,0.169384,88556.0,88555.0,2.002]
[1740558265756,0.169384,88556.0,88555.0,2.006]
[1740558265958,0.169384,88556.0,88555.0,2.002]
[1740558266732,0.169384,88556.0,88555.0,2.006]
[1740558267709,0.469384,88556.0,88555.0,2.006]
[1740558268115,0.469384,88556.0,88555.0,2.004]
[1740558268974,0.469384,88556.0,88555.0,2.0]
[1740558269309,0.469384,88556.0,88555.0,2.002]
[1740558269935,0.469384,88556.0,88555.0,2.003]
[1740558270686,0.469384,88556.0,88555.0,2.0008482]
[1740558270896,0.470384,88556.0,88555.0,2.0008482]
[1740558271104,0.471384,88556.0,88555.0,2.0008482]
[1740558271702,0.470384,88556.0,88555.0,2.0008482]
[1740558272109,0.473384,88556.0,88555.0,2.0008482]